bitfinex/quotes_SOLUSD_20250903
["timestamp","ask_amount","ask_price","bid_price","bid_amount"]
[1756920021718,4.62772923,211.18,211.14,0.75]
[1756920022029,4.62772923,211.17,211.14,0.75]
[1756920022238,0.06,211.19,211.15,0.72]
[1756920022441,4.62772923,211.17,211.14,0.75]
[1756920022758,4.62772923,211.17,211.15,0.72]
[1756920023247,4.62772923,211.18,211.16,0.72]
[1756920023445,4.68772923,211.19,211.16,0.72]
[1756920024028,4.68772923,211.19,211.17,0.72]
[1756920024540,4.68772923,211.19,211.14,0.03]
[1756920024541,0.06,211.19,211.18,0.72]
[1756920024736,0.06,211.19,211.18,5.34772923]
[1756920026527,0.06,211.19,211.18,10.08302613]
[1756920027540,0.06,211.19,211.18,8.41691186]
[1756920027839,3.74161496,211.19,211.16,0.03]
[1756920028232,2.96161496,211.17,211.16,0.03]
[1756920028645,3.68161496,211.17,211.16,0.03]
[1756920028848,2.96161496,211.17,211.16,0.03]
[1756920029254,3.68161496,211.17,211.16,0.03]
[1756920029462,0.72,211.17,211.16,0.03]
[1756920029670,3.68161496,211.17,211.16,0.03]
[1756920029870,8.4171361,211.17,211.16,0.03]
[1756920037369,4.73534088,211.18,211.16,0.03]
[1756920037567,7.69695584,211.18,211.16,0.03]
[1756920038152,4.73534088,211.18,211.16,0.03]
[1756920038451,3.68161496,211.17,211.16,0.03]
[1756920039251,8.4171361,211.17,211.16,0.03]
[1756920040155,7.6971361,211.17,211.16,0.03]
[1756920040482,8.4171361,211.17,211.16,0.03]
[1756920041075,7.6971361,211.17,211.16,0.03]
[1756920044174,2.96161496,211.17,211.16,0.03]
[1756920044759,8.3671361,211.17,211.16,0.03]
[1756920045568,8.4271361,211.17,211.16,0.03]
[1756920046084,3.02161496,211.17,211.16,0.03]
[1756920047080,7.7571361,211.17,211.16,0.03]
[1756920047248,8.4271361,211.17,211.16,0.03]
[1756920053277,5.46552114,211.17,211.16,0.03]
[1756920053477,8.4271361,211.17,211.16,0.03]
[1756920058379,8.71145924,211.17,211.16,0.03]
[1756920060366,22.30705325,211.17,211.16,0.03]
[1756920064170,59.44705325,211.17,211.16,0.03]
[1756920065291,59.44705325,211.17,211.14,0.03]
[1756920065479,39.87991715,211.12,211.11,0.03]
[1756920065782,13.87991715,211.11,211.09,0.03]
[1756920065984,40.3859381,211.1,211.09,0.03]
[1756920066190,8.65302952,211.1,211.09,0.03]
[1756920066578,26.0,211.11,211.09,0.75]
[1756920066784,2.96161496,211.11,211.09,0.75]
[1756920067089,28.96161496,211.11,211.1,0.72]
[1756920067590,2.96161496,211.13,211.1,0.72]
[1756920068183,7.69804182,211.13,211.11,0.72]
[1756920068376,7.69804182,211.13,211.09,0.03]
[1756920068377,2.96161496,211.12,211.09,0.03]
[1756920068577,2.96161496,211.11,211.09,0.75]
[1756920068782,2.96161496,211.11,211.1,0.72]
[1756920069185,2.96161496,211.11,211.09,0.03]
[1756920069394,3.63161496,211.1,211.09,0.03]
[1756920069587,2.96161496,211.1,211.09,0.03]
[1756920069973,26.0,211.15,211.09,0.75]
[1756920070194,2.96161496,211.14,211.09,0.75]
[1756920070778,2.96161496,211.13,211.09,0.75]
[1756920071293,2.96161496,211.13,211.1,0.72]
[1756920071479,2.96161496,211.13,211.11,0.72]
[1756920071796,7.69785288,211.14,211.12,0.7]
[1756920072089,2.96161496,211.14,211.12,0.7]
[1756920072471,2.96161496,211.15,211.13,0.7]
[1756920072677,2.96161496,211.16,211.14,0.7]
[1756920073099,26.06,211.17,211.15,0.7]
[1756920073277,26.06,211.17,211.16,0.7]
[1756920073599,0.06,211.17,211.16,0.7]
[1756920076470,0.06,211.17,211.16,3.66161496]
[1756920076688,0.06,211.17,211.16,8.39736036]
[1756920077278,0.06,211.17,211.16,5.4357454]
[1756920078301,0.06,211.17,211.16,8.39736036]
[1756920079801,0.06,211.17,211.16,8.42736036]
[1756920081111,0.06,211.17,211.16,22.30727751]
[1756920081405,0.06,211.19,211.17,0.28432314]
[1756920081585,0.06,211.19,211.18,17.54153211]
[1756920082282,0.06,211.19,211.18,22.27682901]
[1756920082785,0.06,211.19,211.18,59.37682901]
[1756920087483,0.06,211.21,211.19,0.28432314]
[1756920087689,1e-08,211.22,211.21,13.59559401]
[1756920087900,1e-08,211.22,211.21,17.82536388]
[1756920088100,1e-08,211.23,211.21,18.10968702]
[1756920088299,0.2,211.39,211.25,39.87991715]
[1756920088300,0.72,211.37,211.25,39.87991715]
[1756920088501,0.72,211.37,211.27,21.29048865]
[1756920088908,0.72,211.37,211.27,21.99048865]
[1756920089408,0.72,211.36,211.27,59.07048865]
[1756920089586,5.65065116,211.39,211.27,60.73041466]
[1756920089784,4.62154097,211.38,211.27,60.73041466]
[1756920089999,0.72,211.37,211.27,60.73041466]
[1756920090302,0.72,211.37,211.29,39.87991715]
[1756920090483,0.92,211.39,211.29,49.80222956]
[1756920090683,0.92,211.39,211.29,52.39809894]
[1756920091503,1e-08,211.3,211.29,52.39809894]
[1756920092102,1e-08,211.3,211.29,89.47809894]
[1756920093091,1e-08,211.3,211.29,57.1868382]
[1756920093388,1e-08,211.3,211.29,94.2668382]
[1756920094411,1e-08,211.3,211.29,51.54583601]
[1756920094608,1e-08,211.3,211.29,50.84583601]
[1756920094800,1e-08,211.3,211.29,87.90583601]
[1756920094986,1e-08,211.3,211.29,88.19015915]
[1756920095192,1e-08,211.3,211.29,46.50861818]
[1756920095491,0.72000001,211.3,211.29,41.68154097]
[1756920095689,0.72000001,211.3,211.29,4.62154097]
[1756920096094,0.72000001,211.3,211.29,37.06]
[1756920096410,0.72000001,211.3,211.26,13.59559401]
[1756920096595,0.72,211.29,211.25,13.59559401]
[1756920096801,0.72,211.28,211.26,37.06]
[1756920096998,0.72,211.27,211.26,37.06]
[1756920097398,0.72,211.27,211.26,37.09]
[1756920098190,1e-08,211.3,211.26,41.71154097]
[1756920098395,0.72,211.29,211.26,41.71154097]
[1756920098590,0.72,211.28,211.26,41.71154097]
[1756920101095,0.72000001,211.3,211.27,4.62154097]
[1756920101301,1e-08,211.3,211.29,4.62154097]
[1756920101732,1e-08,211.3,211.29,18.88713498]
[1756920102026,1e-08,211.3,211.29,19.17145812]
[1756920102611,1e-08,211.3,211.29,23.90428977]
[1756920102923,1e-08,211.3,211.29,24.47222956]
[1756920106801,1e-08,211.3,211.29,60.94428977]
[1756920107003,1e-08,211.3,211.29,60.27428977]
[1756920107433,1e-08,211.3,211.29,60.94428977]
[1756920107624,1e-08,211.3,211.29,86.94428977]
[1756920109416,1e-08,211.3,211.29,86.27428977]
[1756920110401,1e-08,211.3,211.29,86.94428977]
[1756920111711,1e-08,211.3,211.29,88.17033888]
[1756920112623,0.72000001,211.3,211.29,86.27428977]
[1756920112822,0.72000001,211.3,211.29,85.98996663]
[1756920113126,0.72000001,211.3,211.26,26.03]
[1756920113317,0.72,211.29,211.28,4.62154097]
[1756920114812,0.72,211.29,211.27,59.9703257]
[1756920115013,0.72,211.28,211.27,46.37473169]
[1756920115647,0.72,211.28,211.26,13.62559401]
[1756920115834,1e-08,211.3,211.26,0.03]
[1756920116013,1e-08,211.3,211.27,37.02]
[1756920116510,0.72,211.29,211.27,37.02]
[1756920116711,0.72,211.28,211.27,37.02]
[1756920117119,0.72000001,211.3,211.27,41.75327968]
[1756920117324,0.72000001,211.3,211.28,4.62154097]
[1756920117506,0.72000001,211.3,211.29,37.02]
[1756920120513,1e-08,211.3,211.29,55.23713498]
[1756920120829,1e-08,211.3,211.29,60.92428977]
[1756920123332,1e-08,211.3,211.29,62.82042875]
[1756920124124,1e-08,211.3,211.29,58.19888778]
[1756920124332,1e-08,211.3,211.29,62.82042875]
[1756920126629,1e-08,211.3,211.29,141.98836854]
[1756920126935,1e-08,211.3,211.29,141.42042875]
[1756920127634,1e-08,211.3,211.29,104.40042875]
[1756920127824,1e-08,211.3,211.29,141.42042875]
[1756920131123,1e-08,211.3,211.29,141.45042875]
[1756920132622,1e-08,211.3,211.29,136.82888778]
[1756920132827,1e-08,211.3,211.29,141.45042875]
[1756920133539,1e-08,211.3,211.29,136.82888778]
[1756920133721,1e-08,211.3,211.29,141.45042875]
[1756920135747,1e-08,211.3,211.29,140.78042875]
[1756920136139,1e-08,211.3,211.29,141.49042875]
[1756920137634,1e-08,211.3,211.29,140.78042875]
[1756920137838,1e-08,211.3,211.29,140.76042875]
[1756920138032,0.69000001,211.3,211.29,166.47610561]
[1756920138938,0.69000001,211.3,211.29,129.76042875]
[1756920139134,0.69000001,211.3,211.29,166.76042875]
[1756920139339,0.69000001,211.3,211.29,129.76042875]
[1756920139744,0.69000001,211.3,211.29,49.1221282]
[1756920140030,0.69000001,211.3,211.29,86.26428977]
[1756920141038,0.69000001,211.3,211.29,85.97996663]
[1756920141749,0.69000001,211.3,211.29,59.97996663]
[1756920145152,1e-08,211.3,211.29,60.26428977]
[1756920145352,1e-08,211.3,211.29,60.97428977]
[1756920145655,1e-08,211.3,211.29,68.05981964]
[1756920145861,1e-08,211.3,211.29,63.43827867]
[1756920146559,1e-08,211.3,211.29,142.03827867]
[1756920146738,1e-08,211.3,211.29,141.47033888]
[1756920150655,1e-08,211.3,211.29,140.74033888]
[1756920150959,1e-08,211.3,211.29,25.16033888]
[1756920151137,1e-08,211.3,211.29,62.14033888]
[1756920151337,1e-08,211.3,211.29,20.53879791]
[1756920151550,0.69000001,211.3,211.29,57.23447477]
[1756920151740,0.69000001,211.3,211.29,60.19230487]
[1756920152965,0.69000001,211.3,211.29,60.47662801]
[1756920154859,1e-08,211.3,211.29,60.47662801]
[1756920155563,0.69000001,211.3,211.29,60.47662801]
[1756920155755,1e-08,211.3,211.29,60.47662801]
[1756920157150,1e-08,211.3,211.29,61.18662801]
[1756920157673,1e-08,211.3,211.29,61.7545678]
[1756920158047,1e-08,211.3,211.29,140.3545678]
[1756920158247,1e-08,211.3,211.29,139.78662801]
[1756920162254,1e-08,211.33,211.32,54.66906765]
[1756920162569,1e-08,211.33,211.32,92.19692682]
[1756920162953,1e-08,211.33,211.32,94.79234701]
[1756920163263,1e-08,211.33,211.32,99.52450676]
[1756920163465,1e-08,211.33,211.32,84.16749709]
[1756920163652,0.06,211.35,211.33,13.87991715]
[1756920163852,0.06,211.35,211.34,80.36555268]
[1756920164051,0.06,211.35,211.34,81.06555268]
[1756920164251,0.06,211.35,211.34,82.96097287]
[1756920164953,0.06,211.36,211.35,13.87991715]
[1756920165152,0.06,211.36,211.35,16.83774725]
[1756920165660,0.06,211.36,211.35,100.1692353]
[1756920166959,0.06,211.38,211.35,100.1692353]
[1756920167262,0.06,211.38,211.37,42.55342411]
[1756920167462,0.06,211.38,211.37,43.12114895]
[1756920167863,0.06,211.38,211.37,47.8521893]
[1756920168063,0.06,211.38,211.37,49.74751968]
[1756920169961,0.77,211.38,211.37,49.74751968]
[1756920170273,0.06,211.38,211.37,50.03184282]
[1756920171062,0.06,211.38,211.37,47.07401272]
[1756920171288,0.06,211.38,211.37,50.03184282]
[1756920172168,0.77,211.38,211.37,50.03184282]
[1756920172477,0.77,211.38,211.37,86.42411798]
[1756920172679,0.77,211.38,211.37,83.46628788]
[1756920172862,0.77,211.38,211.37,57.18196474]
[1756920173176,0.77,211.38,211.37,60.13979484]
[1756920175580,0.77,211.38,211.37,57.18196474]
[1756920175884,0.77,211.38,211.37,60.13979484]
[1756920178184,0.77,211.38,211.37,57.18196474]
[1756920178577,0.06,211.38,211.37,61.69184282]
[1756920178776,0.06,211.38,211.37,57.46628788]
[1756920179080,0.77,211.38,211.37,20.50628788]
[1756920179387,0.77,211.38,211.37,57.44628788]
[1756920179568,0.06,211.38,211.37,57.44628788]
[1756920179773,0.06,211.38,211.37,60.40411798]
[1756920180079,0.77,211.38,211.37,60.40411798]
[1756920180685,0.77,211.38,211.37,20.22196474]
[1756920180882,0.77,211.38,211.37,57.16196474]
[1756920181981,0.77,211.38,211.37,41.67104035]
[1756920182385,0.77,211.38,211.37,36.94]
[1756920182589,0.77,211.38,211.36,2.9578301]
[1756920182765,3.6678301,211.37,211.35,0.03]
[1756920182966,2.9578301,211.36,211.35,0.03]
[1756920183197,2.9578301,211.36,211.35,36.97]
[1756920183398,3.6678301,211.36,211.35,36.97]
[1756920183568,3.6678301,211.36,211.35,0.03]
[1756920183875,3.6678301,211.36,211.35,36.97]
[1756920184071,3.6678301,211.36,211.35,0.03]
[1756920184283,8.39909429,211.36,211.35,36.97]
[1756920184469,8.39909429,211.36,211.35,0.03]
[1756920187167,3.6678301,211.36,211.35,0.03]
[1756920187367,0.71,211.36,211.35,0.03]
[1756920187585,3.6678301,211.36,211.35,0.03]
[1756920189098,8.39909429,211.36,211.35,0.03]
[1756920189597,3.6678301,211.36,211.35,0.03]
[1756920193391,0.71,211.36,211.35,0.03]
[1756920193598,3.6678301,211.36,211.35,0.03]
[1756920196286,8.39909429,211.36,211.35,0.03]
[1756920201386,20.22725477,211.36,211.32,0.03]
[1756920201584,40.7891505,211.33,211.3,0.03]
[1756920201788,7.6902138,211.31,211.3,0.03]
[1756920202191,8.4002138,211.31,211.3,0.03]
[1756920202698,8.4002138,211.31,211.29,0.03]
[1756920202992,2.9578301,211.27,211.26,0.03]
[1756920203388,3.6678301,211.27,211.26,0.03]
[1756920203579,2.9578301,211.27,211.26,0.03]
[1756920205002,3.6678301,211.27,211.26,0.03]
[1756920205995,8.40110978,211.27,211.26,0.03]
[1756920206404,3.6678301,211.27,211.26,0.03]
[1756920206906,2.9578301,211.27,211.26,0.03]
[1756920207881,3.6678301,211.27,211.26,0.03]
[1756920208086,8.40110978,211.27,211.26,0.03]
[1756920208485,5.44327968,211.27,211.26,0.03]
[1756920208689,8.40110978,211.27,211.26,0.03]
[1756920210691,5.44327968,211.27,211.26,0.03]
[1756920211008,8.40110978,211.27,211.26,0.03]
[1756920213015,4.73327968,211.27,211.26,0.03]
[1756920213222,7.69110978,211.27,211.26,0.03]
[1756920213395,8.40110978,211.27,211.26,0.03]
[1756920213715,10.07057766,211.27,211.26,0.03]
[1756920214419,9.36057766,211.27,211.26,0.03]
[1756920215717,10.07057766,211.27,211.26,0.03]
[1756920220105,10.07057766,211.27,211.24,0.03]
[1756920220306,10.07057766,211.27,211.23,0.03]
[1756920220307,30.62729798,211.25,211.23,0.03]
[1756920220505,4.62729798,211.24,211.23,0.03]
[1756920220713,5.33729798,211.24,211.23,0.03]
[1756920220915,26.0,211.22,211.21,0.03]
[1756920221221,35.25459596,211.22,211.21,0.03]
[1756920221518,35.96459596,211.22,211.21,0.03]
[1756920222319,40.69899611,211.22,211.21,0.03]
[1756920223804,42.59693448,211.22,211.21,0.03]
[1756920224697,54.43293485,211.22,211.16,0.03]
[1756920224899,4.62729798,211.17,211.16,0.03]
[1756920226101,9.36281912,211.17,211.16,0.03]
[1756920226404,9.36281912,211.17,211.16,0.69]
[1756920226405,4.62729798,211.17,211.16,0.69]
[1756920227302,4.62729798,211.17,211.16,0.03]
[1756920228004,9.36281912,211.17,211.16,0.03]
[1756920228204,10.06281912,211.17,211.16,0.03]
[1756920229328,9.36281912,211.17,211.16,0.03]
[1756920229635,10.06281912,211.17,211.16,0.03]
[1756920230128,9.36281912,211.17,211.16,0.03]
[1756920230635,30.73552114,211.17,211.16,0.03]
[1756920230924,35.36281912,211.17,211.16,0.03]
[1756920231525,36.06281912,211.17,211.16,0.03]
[1756920235509,35.36281912,211.17,211.16,0.03]
[1756920236031,36.06281912,211.17,211.16,0.03]
[1756920237120,47.90162198,211.17,211.13,0.03]
[1756920237322,4.62729798,211.14,211.13,0.03]
[1756920239225,10.06349197,211.14,211.13,0.03]
[1756920239425,9.36349197,211.14,211.13,0.03]
[1756920241024,10.06349197,211.14,211.13,0.03]
[1756920242528,10.06349197,211.14,211.11,0.03]
[1756920242529,26.0,211.12,211.11,0.03]
[1756920242723,30.62729798,211.12,211.11,0.03]
[1756920243038,31.32729798,211.12,211.11,0.03]
[1756920243234,36.06394064,211.12,211.11,0.03]
[1756920244434,36.06394064,211.12,211.09,0.03]
[1756920244435,40.69123862,211.12,211.09,0.03]
[1756920244633,9.25459596,211.1,211.09,0.03]
[1756920245028,9.95459596,211.1,211.09,0.03]
[1756920245225,14.69168738,211.1,211.09,0.03]
[1756920245644,26.0,211.08,211.07,0.03]
[1756920245814,72.33675753,211.08,211.05,0.03]
[1756920246017,4.62729798,211.06,211.05,0.03]
[1756920246540,5.32729798,211.06,211.05,0.03]
[1756920247244,10.06528717,211.06,211.05,0.03]
[1756920249022,10.06528717,211.06,211.04,0.1]
[1756920249442,4.62729798,211.05,211.04,0.1]
[1756920249933,5.32729798,211.05,211.04,0.1]
[1756920250250,10.06551167,211.05,211.04,0.1]
[1756920250619,26.0,211.03,211.0,0.03]
[1756920250930,30.62729798,211.03,211.0,0.03]
[1756920251131,31.32729798,211.03,211.0,0.03]
[1756920251745,30.62729798,211.03,211.0,0.03]
[1756920252353,30.73866274,211.03,211.0,0.03]
[1756920252520,26.0,211.03,211.0,0.72]
[1756920252724,30.62729798,211.03,211.0,0.72]
[1756920253034,1.89956072,211.05,211.0,0.03]
[1756920253345,4.62729798,211.03,211.02,0.72]
[1756920256559,4.62729798,211.03,211.02,0.03]
[1756920257054,4.62729798,211.03,211.02,0.72]
[1756920260166,4.73794764,211.07,211.02,0.72]
[1756920260167,26.0,211.06,211.02,0.72]
[1756920260372,4.62729798,211.03,211.02,0.03]
[1756920262176,4.62729798,211.03,211.02,0.72]
[1756920262765,4.76925672,211.09,211.02,0.72]
[1756920262950,131.5,211.1,211.02,0.72]
[1756920262951,4.62729798,211.07,211.02,0.72]
[1756920263455,4.62729798,211.05,211.02,0.03]
[1756920263763,4.62729798,211.06,211.03,0.69]
[1756920263974,4.62729798,211.06,211.04,0.69]
[1756920264158,4.62729798,211.05,211.02,0.72]
[1756920264353,4.62729798,211.05,211.03,0.69]
[1756920265061,5.29729798,211.04,211.02,0.03]
[1756920265274,4.62729798,211.03,211.02,0.03]
[1756920265653,5.29729798,211.04,211.02,0.03]
[1756920265947,4.62729798,211.04,211.02,0.03]
[1756920266347,26.0,211.07,211.03,0.69]
[1756920266551,30.62729798,211.07,211.03,0.69]
[1756920266750,4.76929244,211.11,211.04,0.69]
[1756920266949,4.62729798,211.13,211.08,4.73754026]
[1756920267258,4.62729798,211.13,211.09,0.69]
[1756920268470,4.62729798,211.13,211.08,4.73754026]
[1756920268674,4.62729798,211.13,211.09,0.69]
[1756920269561,4.68729798,211.13,211.09,0.69]
[1756920270152,4.68729798,211.13,211.1,0.69]
[1756920270574,4.68729798,211.13,211.08,5.42754026]
[1756920270875,4.68729798,211.13,211.09,0.69]
[1756920271460,5.35729798,211.13,211.09,0.69]
[1756920271655,5.35729798,211.13,211.08,4.73754026]
[1756920271855,0.73,211.13,211.08,5.42754026]
[1756920272056,5.35729798,211.13,211.08,5.42754026]
[1756920272746,4.62729798,211.12,211.07,4.73776472]
[1756920272965,4.62729798,211.12,211.08,0.69]
[1756920273364,0.06,211.13,211.08,0.69]
[1756920273672,4.62729798,211.12,211.08,0.69]
[1756920274050,4.62729798,211.12,211.09,0.69]
[1756920274950,4.68729798,211.13,211.09,0.69]
[1756920275145,4.68729798,211.13,211.09,5.42722798]
[1756920275567,2.9645446,211.12,211.07,5.42755147]
[1756920276159,2.9645446,211.12,211.08,0.69]
[1756920276574,3.6345446,211.12,211.08,5.42749877]
[1756920276874,2.9645446,211.12,211.09,0.69]
[1756920277070,3.0245446,211.13,211.09,0.69]
[1756920277379,3.0245446,211.13,211.08,4.73749877]
[1756920277680,3.6945446,211.13,211.09,0.69]
[1756920277981,0.06,211.13,211.09,0.69]
[1756920278671,0.06,211.13,211.09,5.42715148]
[1756920279276,0.73,211.13,211.09,5.42715148]
[1756920279457,3.6945446,211.13,211.09,5.42715148]
[1756920280274,3.0245446,211.13,211.09,5.42715148]
[1756920281392,3.0245446,211.13,211.09,4.73715148]
[1756920281574,3.0245446,211.13,211.09,5.42715148]
[1756920281888,3.7445446,211.13,211.09,5.42715148]
[1756920282685,3.7445446,211.13,211.07,4.73757137]
[1756920282686,2.9645446,211.12,211.07,4.73757137]
[1756920282895,2.9645446,211.12,211.09,0.71]
[1756920284790,0.78,211.13,211.09,0.71]
[1756920285083,3.7445446,211.13,211.09,0.71]
[1756920285458,3.7445446,211.13,211.09,5.44722991]
[1756920286404,0.78,211.13,211.09,5.44722991]
[1756920286573,3.7445446,211.13,211.09,5.44722991]
[1756920286882,3.7445446,211.13,211.08,4.73754026]
[1756920287091,3.7445446,211.13,211.08,5.44754026]
[1756920287563,3.7445446,211.13,211.09,0.71]
[1756920287990,3.7445446,211.13,211.09,5.44727475]
[1756920291479,0.06,211.13,211.1,17.55446175]
[1756920291679,0.06,211.13,211.09,4.73727475]
[1756920291862,3.7445446,211.13,211.09,5.44727475]
[1756920292170,2.9645446,211.12,211.07,4.79580138]
[1756920292375,3.6845446,211.11,211.07,0.71]
[1756920292572,3.6845446,211.11,211.06,50.77991715]
[1756920292573,2.9645446,211.08,211.04,4.4545446]
[1756920292774,3.6845446,211.07,211.02,0.74]
[1756920292959,2.9645446,211.06,211.02,0.74]
[1756920293160,2.9645446,211.06,211.02,0.03]
[1756920293374,2.9645446,211.06,211.03,0.71]
[1756920293560,3.6845446,211.07,211.03,0.71]
[1756920294286,0.72,211.09,211.04,0.71]
[1756920294579,2.9645446,211.09,211.05,0.71]
[1756920294768,3.6845446,211.09,211.05,0.71]
[1756920294971,0.72,211.09,211.05,0.71]
[1756920295170,2.9645446,211.09,211.04,2.9645446]
[1756920295375,3.6845446,211.11,211.06,0.71]
[1756920295568,3.6845446,211.11,211.07,5.44776472]
[1756920295869,2.9645446,211.09,211.06,4.73793565]
[1756920296073,2.9645446,211.09,211.05,4.73817167]
[1756920296396,0.72,211.11,211.04,36.9]
[1756920296397,3.6845446,211.08,211.04,36.9]
[1756920296678,2.9645446,211.06,211.02,0.03]
[1756920296883,2.9645446,211.06,211.02,4.76881248]
[1756920297181,2.9645446,211.06,211.02,5.47881248]
[1756920297182,3.6845446,211.06,211.02,5.47881248]
[1756920297482,0.72,211.06,211.02,5.47881248]
[1756920297661,2.9645446,211.05,211.02,5.47881248]
[1756920297863,2.9645446,211.05,211.02,0.74]
[1756920298066,2.9645446,211.04,211.02,0.03]
[1756920298261,2.9645446,211.03,211.02,0.03]
[1756920298466,3.6845446,211.03,211.02,0.03]
[1756920299587,8.42320734,211.03,211.02,0.03]
[1756920301876,26.0,211.01,211.0,0.03]
[1756920302396,29.6845446,211.01,211.0,0.03]
[1756920303779,3.6845446,211.01,211.0,0.03]
[1756920305298,2.9645446,211.02,211.01,0.03]
[1756920305583,0.72,211.04,211.01,0.03]
[1756920305768,2.9645446,211.02,211.01,0.03]
[1756920305966,2.9645446,211.03,211.01,0.74]
[1756920306273,2.9645446,211.04,211.01,0.74]
[1756920307186,2.9645446,211.05,211.01,0.03]
[1756920307372,2.9645446,211.05,211.02,0.71]
[1756920308073,2.9645446,211.03,211.01,0.03]
[1756920308280,2.9645446,211.04,211.01,0.74]
[1756920309076,2.9645446,211.04,211.01,0.03]
[1756920309282,2.9645446,211.04,211.01,4.7690998]
[1756920309484,2.9645446,211.04,211.01,5.4790998]
[1756920309798,2.9645446,211.04,211.01,0.74]
[1756920310794,0.06,211.06,211.02,0.71]
[1756920310979,0.06,211.06,211.03,0.71]
[1756920311412,0.06,211.06,211.01,8.44362172]
[1756920311598,3.0245446,211.06,211.02,0.71]
[1756920311902,0.06,211.06,211.03,0.69]
[1756920312277,3.0245446,211.06,211.03,0.69]
[1756920312495,3.0245446,211.06,211.01,4.76907712]
[1756920312675,3.0245446,211.06,211.04,0.69]
[1756920312879,0.06,211.06,211.04,0.69]
[1756920313075,3.0245446,211.06,211.02,0.69]
[1756920313278,2.9645446,211.05,211.03,0.69]
[1756920313677,0.06,211.06,211.03,0.69]
[1756920313973,0.06,211.06,211.03,3.6545446]
[1756920314178,0.06,211.06,211.03,40.5545446]
[1756920314376,0.06,211.06,211.04,0.69]
[1756920314580,0.06,211.06,211.04,3.6545446]
[1756920314777,0.06,211.06,211.05,18.3338077]
[1756920314983,0.06,211.06,211.05,22.27267544]
[1756920315884,0.06,211.06,211.05,19.30813084]
[1756920316094,0.06,211.06,211.05,56.20813084]
[1756920316292,0.06,211.06,211.05,59.17267544]
[1756920316603,0.06,211.06,211.05,22.27267544]
[1756920316808,0.06,211.06,211.04,4.73839249]
[1756920316997,0.06,211.06,211.04,41.63839249]
[1756920317705,0.06,211.06,211.01,2.9945446]
[1756920317706,0.72,211.06,211.01,2.9945446]
[1756920317910,0.66,211.05,211.02,36.9]
[1756920318106,0.66,211.04,211.01,4.76908986]
[1756920318319,0.66,211.04,211.01,36.93]
[1756920318796,2.9645446,211.05,211.01,0.03]
[1756920318797,2.9645446,211.02,211.01,0.03]
[1756920319200,3.6245446,211.02,211.01,0.03]
[1756920320086,8.3634319,211.02,211.01,0.03]
[1756920322206,3.6245446,211.02,211.01,0.03]
[1756920322707,8.3634319,211.02,211.01,0.03]
[1756920326396,22.24334905,211.02,211.0,0.03]
[1756920326596,3.24886774,211.01,211.0,0.03]
[1756920326923,8.64797963,211.01,211.0,0.03]
[1756920328119,5.39911189,211.01,211.0,0.03]
[1756920328422,8.36365649,211.01,211.0,0.03]
[1756920329307,8.64797963,211.01,211.0,0.03]
[1756920329643,8.36365649,211.01,211.0,0.03]
[1756920329798,3.6245446,211.01,211.0,0.03]
[1756920330121,2.9645446,211.01,211.0,0.03]
[1756920330502,8.36365649,211.01,211.0,0.03]
[1756920332133,26.0,211.02,211.0,0.03]
[1756920332429,2.9645446,211.04,211.0,0.72]
[1756920333130,2.9645446,211.04,211.0,0.03]
[1756920333302,2.9645446,211.03,211.01,0.69]
[1756920333625,2.9645446,211.05,211.02,0.69]
[1756920333829,2.9645446,211.05,211.03,0.69]
[1756920334201,3.0245446,211.06,211.03,0.69]
[1756920336926,2.9645446,211.05,211.02,0.69]
[1756920337521,4.63563878,211.05,211.02,0.69]
[1756920337927,4.63563878,211.05,211.0,4.76933649]